bitfinex/quotes_ETHUSD_20251224
["timestamp","ask_amount","ask_price","bid_price","bid_amount"]
[1766556243414,4.40377647,2929.6,2928.5,0.51037765]
[1766556243619,7.3107,2929.5,2928.5,0.51237765]
[1766556243994,0.001,2929.3,2928.5,3.92709445]
[1766556244188,0.001,2929.3,2928.6,0.46270944]
[1766556244418,7.3107,2929.2,2928.7,0.03414484]
[1766556244743,0.001,2929.3,2928.6,0.034146]
[1766556245995,7.3117,2929.3,2928.5,0.002]
[1766556246226,7.3107,2929.2,2928.5,0.002]
[1766556246525,10.72464532,2929.2,2928.5,0.002]
[1766556247735,8.72464312,2929.2,2928.5,0.002]
[1766556248320,7.3107,2929.1,2928.5,0.002]
[1766556248701,7.3107,2928.9,2928.5,0.002]
[1766556251021,7.3117,2928.9,2928.5,0.002]
[1766556251834,7.3107,2928.8,2928.0,4.40377647]
[1766556252132,8.38329511,2928.7,2928.0,4.40377647]
[1766556252339,8.38329511,2928.7,2927.8,3.41722264]
[1766556252340,7.3107,2928.3,2927.8,0.00176529]
[1766556252505,4.40377647,2928.4,2927.3,0.002]
[1766556252506,7.3004534,2928.1,2927.3,0.002]
[1766556252704,5.30904323,2928.2,2927.3,0.002]
[1766556252705,7.3107,2927.9,2927.3,0.002]
[1766556253005,3.41553384,2927.8,2927.3,0.002]
[1766556253217,7.3107,2927.7,2927.3,0.002]
[1766556255222,7.30045445,2927.7,2927.0,0.02791912]
[1766556255614,7.30045445,2927.7,2927.0,3.44434925]
[1766556255814,7.30045445,2927.7,2927.0,4.5708288]
[1766556256336,7.30045445,2927.7,2927.2,4.40377647]
[1766556256543,7.30045445,2927.7,2927.3,0.02791562]
[1766556257930,7.30045445,2927.7,2927.0,4.40377647]
[1766556258131,7.3107,2927.6,2927.0,4.40377647]
[1766556258334,7.3107,2927.6,2927.0,4.40577647]
[1766556258906,7.3107,2927.6,2927.0,0.002]
[1766556259320,8.04177,2927.6,2927.0,0.002]
[1766556259516,7.3107,2927.5,2927.0,0.002]
[1766556260103,7.3107,2927.5,2926.9,4.39552952]
[1766556260832,0.73107,2927.6,2927.1,4.40377647]
[1766556261139,7.3107,2927.7,2927.2,0.03416233]
[1766556261339,3.41524731,2928.1,2927.2,0.03416233]
[1766556261340,0.895,2927.9,2927.2,0.03416233]
[1766556261837,8.2057,2927.9,2927.2,0.03416233]
[1766556262334,8.2057,2927.9,2927.1,0.0341635]
[1766556262838,11.62112831,2927.9,2927.1,0.0341635]
[1766556263037,13.1247609,2927.9,2927.1,0.0341635]
[1766556263344,9.70933259,2927.9,2927.1,3.45041725]
[1766556263722,9.70933259,2927.9,2927.1,0.0341635]
[1766556264222,12.22975653,2927.9,2927.1,0.0341635]
[1766556264609,7.3107,2927.8,2927.1,0.0341635]
[1766556264811,8.62317565,2927.8,2926.7,4.3117745]
[1766556265241,8.62317565,2927.8,2927.0,0.002]
[1766556265631,7.3107,2927.6,2927.0,0.002]
[1766556269347,7.3107,2927.5,2927.0,0.002]
[1766556269532,8.38334851,2927.4,2926.5,0.002]
[1766556269737,7.3107,2927.2,2926.5,0.002]
[1766556271547,8.2057,2927.2,2926.5,0.03617051]
[1766556271846,3.41585272,2927.6,2926.6,3.41693432]
[1766556271847,0.895,2927.4,2926.6,3.41693432]
[1766556272046,7.0161,2927.3,2926.6,3.75882775]
[1766556272243,7.0161,2927.3,2926.6,0.34189343]
[1766556273244,7.0161,2927.3,2926.5,0.002]
[1766556274246,0.01026676,2926.7,2926.1,0.002]
[1766556274417,7.9111,2926.6,2926.1,0.002]
[1766556274614,0.895,2926.6,2926.1,4.41572609]
[1766556274931,0.895,2926.6,2926.2,0.03417401]
[1766556275246,7.0161,2926.9,2926.2,0.03417401]
[1766556275449,8.17480344,2926.8,2926.2,0.03417401]
[1766556277143,8.17480344,2926.8,2926.1,4.41572609]
[1766556277448,8.17480344,2926.8,2926.1,0.002]
[1766556277449,6.57716676,2926.6,2926.1,0.002]
[1766556278153,6.5669,2926.4,2926.1,0.002]
[1766556278670,6.5669,2927.2,2926.2,1.137]
[1766556278817,6.5679,2927.5,2926.8,1.1185]
[1766556279017,6.5679,2927.5,2926.8,1.152667]
[1766556279230,6.5679,2927.5,2926.8,1.1185]
[1766556279418,6.57716676,2927.3,2926.8,1.1185]
[1766556280624,6.5669,2927.3,2926.3,1.45127261]
[1766556280818,6.57716676,2927.2,2926.5,1.0821]
[1766556282350,7.4619,2927.1,2926.5,1.0821]
[1766556282652,7.4619,2927.1,2926.2,1.0642]
[1766556282653,6.5669,2926.8,2926.2,1.0642]
[1766556283240,6.57716676,2927.0,2926.3,1.08067284]
[1766556283433,0.895,2926.9,2926.4,1.0465]
[1766556283853,6.5669,2927.0,2926.4,1.0465]
[1766556284026,7.4619,2927.0,2926.6,0.7]
[1766556284351,7.4619,2927.0,2926.7,1.029]
[1766556284352,0.895,2927.0,2926.7,1.029]
[1766556284558,0.01026676,2927.2,2926.7,1.029]
[1766556284724,6.56691981,2927.2,2926.7,1.029]
[1766556285223,0.01026676,2927.0,2926.6,0.7]
[1766556285536,6.5669,2926.7,2926.1,0.002]
[1766556285932,6.5669,2926.7,2926.1,0.0913]
[1766556286469,0.90526676,2927.0,2926.1,0.0913]
[1766556286470,6.57716676,2927.0,2926.3,0.0893]
[1766556286671,6.57716676,2927.0,2926.2,4.4479001]
[1766556286672,6.5669,2927.0,2926.5,0.0893]
[1766556287339,6.57716676,2927.0,2926.2,0.0724]
[1766556287743,6.5669,2926.6,2926.1,0.002]
[1766556288364,6.5669,2926.6,2926.1,0.38410939]
[1766556288952,6.5669,2926.6,2926.1,0.42320939]
[1766556289273,6.5669,2926.6,2926.1,0.002]
[1766556289982,6.57716676,2926.5,2926.1,0.002]
[1766556290769,6.5669,2926.5,2926.1,0.002]
[1766556291142,6.57716676,2926.5,2926.0,0.002]
[1766556292276,0.01126676,2926.7,2926.0,0.002]
[1766556292277,0.001,2926.7,2926.0,0.002]
[1766556292476,0.001,2926.7,2926.1,0.44519036]
[1766556292777,0.001,2926.7,2926.0,0.002]
[1766556293699,0.001,2926.7,2926.0,0.03617634]
[1766556295285,0.001,2926.7,2926.0,3.45378617]
[1766556296080,3.42654036,2927.2,2926.2,4.41372609]
[1766556296081,6.5669,2927.1,2926.2,4.41372609]
[1766556296391,6.57716676,2927.4,2926.6,4.41372609]
[1766556296567,6.57716676,2927.4,2926.7,0.44137261]
[1766556297258,0.001,2926.7,2926.4,7.83078093]
[1766556297954,9.99321922,2927.4,2926.4,7.83078093]
[1766556298355,6.57716676,2927.4,2926.4,7.83078093]
[1766556299972,0.001,2927.5,2926.4,7.83078093]
[1766556300179,0.01126676,2927.5,2926.4,7.83078093]
[1766556300486,6.5669,2927.4,2926.5,0.87267809]
[1766556302786,6.5669,2927.4,2926.5,4.28972835]
[1766556302983,6.5669,2927.4,2926.5,0.87267809]
[1766556303191,6.5669,2927.4,2926.5,4.28970516]
[1766556303386,3.42716468,2927.5,2926.5,4.28970516]
[1766556303686,10.12976468,2927.5,2926.6,0.87034313]
[1766556304265,6.71386676,2927.5,2926.6,0.87034313]
[1766556305779,6.71386676,2927.5,2926.6,4.28726092]
[1766556306301,6.71386676,2927.5,2926.6,0.87034313]
[1766556306997,6.71386676,2927.5,2926.6,4.28726626]
[1766556307200,6.71386676,2927.5,2926.7,0.51599443]
[1766556308003,6.71386676,2927.5,2926.7,8.34651328]
[1766556308180,6.7036,2927.5,2926.8,0.034167]
[1766556310272,6.7036,2927.5,2926.7,0.51599443]
[1766556310273,6.7026,2927.2,2926.7,0.51599443]
[1766556310587,6.7026,2927.2,2926.3,0.896]
[1766556311112,0.01026676,2927.3,2926.3,0.896]
[1766556311113,6.71286676,2927.1,2926.3,0.896]
[1766556311496,6.71286676,2926.9,2926.3,0.896]
[1766556311703,6.7026,2926.9,2926.2,0.7]
[1766556312414,6.7026,2926.9,2926.0,4.34978685]
[1766556312579,6.7026,2926.9,2926.1,4.84890478]
[1766556312774,6.7026,2926.9,2926.2,0.03417401]
[1766556314097,6.71286676,2926.9,2926.4,0.7]
[1766556314607,6.71286676,2926.9,2926.1,4.84890478]
[1766556316097,6.71286676,2926.9,2926.2,0.03417401]
[1766556319194,6.71286676,2926.9,2926.4,0.7]
[1766556319513,6.7026,2926.9,2926.2,0.03417401]
[1766556319722,6.7026,2926.9,2926.2,0.51286039]
[1766556322644,0.01026676,2926.8,2926.2,0.03417401]
[1766556322837,6.7026,2926.7,2926.1,0.002]
[1766556323029,6.71286676,2926.4,2926.1,0.002]
[1766556323831,6.7026,2926.4,2926.1,0.002]
[1766556324031,7.37388668,2926.4,2926.1,0.002]
[1766556325250,6.71286676,2926.3,2926.1,0.002]
[1766556325920,6.7026,2926.3,2926.1,0.002]
[1766556327236,0.01026676,2926.6,2926.1,0.002]
[1766556327437,6.7026,2926.5,2926.1,0.002]
[1766556328135,7.26502124,2926.5,2926.1,0.002]
[1766556328323,0.01026676,2926.4,2926.1,0.002]
[1766556328644,6.71286676,2926.4,2926.1,0.002]
[1766556331361,6.7026,2926.4,2926.1,0.002]
[1766556332118,6.0522,2926.7,2926.1,0.002]
[1766556332545,6.55582903,2926.7,2926.1,0.002]
[1766556332741,9.97265363,2926.7,2926.1,0.002]
[1766556333751,0.01026676,2926.6,2926.1,0.002]
[1766556335833,6.0522,2926.7,2926.2,4.41708494]
[1766556336039,5.9693,2927.0,2926.3,0.47608133]
[1766556336365,5.9693,2927.0,2926.3,0.03417284]
[1766556338534,5.9693,2927.0,2926.1,0.898]
[1766556338766,5.97956676,2927.0,2926.2,4.45125895]
[1766556339153,5.9693,2926.9,2926.3,0.7]
[1766556339353,5.9693,2926.9,2926.2,4.45125895]
[1766556339354,5.9693,2926.9,2926.4,0.03417167]
[1766556339674,5.9693,2926.9,2926.3,0.03417284]
[1766556340188,0.001,2927.4,2926.3,0.53492578]
[1766556340361,5.97956676,2927.3,2926.5,4.41708494]
[1766556340568,5.97956676,2927.3,2926.6,0.896]
[1766556342337,5.9693,2927.3,2926.7,4.41708494]
[1766556342671,0.001,2927.4,2926.7,4.45125311]
[1766556343070,5.98056676,2927.4,2926.6,0.896]
[1766556343572,5.98056676,2927.4,2926.6,0.93016934]
[1766556344267,5.98056676,2927.4,2926.8,0.7]
[1766556344859,5.98056676,2927.4,2926.6,0.93016934]
[1766556345250,5.9693,2927.3,2926.6,0.896]
[1766556345571,5.9693,2927.1,2926.6,0.896]
[1766556345771,5.9693,2927.1,2926.1,3.41948003]
[1766556345972,5.97956676,2927.0,2926.3,0.896]
[1766556349085,5.97956676,2927.0,2926.5,0.7]
[1766556349286,5.9693,2926.8,2926.5,0.7]
[1766556350094,3.42654677,2927.2,2926.5,0.7]
[1766556350095,5.9693,2927.1,2926.5,0.7]
[1766556350890,5.97956676,2927.1,2926.5,0.7]
[1766556351091,5.9693,2927.0,2926.5,0.7]
[1766556351290,3.42667018,2927.1,2926.1,0.002]
[1766556351291,5.9693,2926.6,2926.1,0.002]
[1766556353705,0.01026676,2926.8,2926.1,0.87568244]
[1766556353996,5.9693,2926.9,2926.2,4.41708494]
[1766556354195,5.9693,2926.9,2926.3,0.7]
[1766556357432,5.97956676,2927.2,2926.4,5.31308494]
[1766556357587,5.9693,2927.2,2926.4,5.31308494]
[1766556357785,5.9693,2927.2,2926.5,0.60130849]
[1766556359215,0.001,2927.4,2927.0,9.21378494]
[1766556359427,5.97956676,2927.6,2927.2,4.41708494]
[1766556360929,0.01026676,2927.6,2927.2,4.41708494]
[1766556361213,5.9703,2927.5,2927.1,4.7967]
[1766556361589,0.01026676,2927.4,2926.9,4.7768]
[1766556361788,0.01026676,2927.4,2927.1,4.767]
[1766556363108,0.001,2927.5,2927.1,4.767]
[1766556363318,6.3052,2927.5,2927.1,4.7573]
[1766556364230,0.001,2927.5,2927.1,4.7573]
[1766556365326,6.3052,2927.5,2927.1,4.7573]
[1766556366398,6.31446676,2927.8,2927.2,9.12568494]
[1766556368128,9.73004708,2927.8,2927.2,9.12568494]
[1766556368322,6.3042,2927.7,2927.2,4.41708494]
[1766556368524,0.01026676,2927.6,2927.2,4.41708494]
[1766556368726,6.3042,2927.5,2927.2,4.41708494]
[1766556370039,6.3052,2927.5,2927.2,4.41708494]
[1766556370406,6.3052,2927.5,2927.0,9.08838494]
[1766556371344,6.3052,2927.5,2927.0,10.08682343]
[1766556372053,6.3042,2927.3,2926.8,4.5994]
[1766556372235,6.3042,2927.3,2927.0,4.41708494]
[1766556375244,6.3042,2927.3,2927.0,8.96458494]
[1766556375747,0.001,2927.5,2927.0,8.96458494]
[1766556375948,6.3052,2927.5,2927.0,8.96458494]
[1766556376839,6.3052,2927.5,2927.0,8.96658494]
[1766556378347,6.3042,2927.3,2927.0,0.002]
[1766556379658,0.63254668,2927.5,2927.0,0.002]
[1766556379659,6.3052,2927.5,2927.0,4.467]
[1766556380533,6.31446676,2927.4,2927.0,4.467]
[1766556381565,6.31446676,2927.4,2927.0,0.002]
[1766556382169,6.3042,2927.3,2926.8,0.896]
[1766556382652,6.31446676,2927.3,2926.8,0.896]
[1766556383032,6.31446676,2927.3,2926.8,5.3158]
[1766556383675,6.31446676,2927.3,2927.0,0.002]
[1766556383958,7.62920833,2927.3,2927.0,0.002]
[1766556384132,11.04533336,2927.3,2927.0,0.002]
[1766556385054,7.62920833,2927.3,2927.0,0.002]
[1766556385872,6.3042,2927.3,2927.0,0.002]
[1766556387155,6.3052,2927.5,2927.0,4.3465]
[1766556387355,6.3042,2927.4,2927.0,4.3465]
[1766556387855,6.31446676,2927.4,2927.0,0.002]
[1766556388968,6.3042,2927.3,2927.0,0.002]
[1766556389275,7.61894951,2927.3,2926.8,0.896]
[1766556389566,6.3042,2927.3,2926.8,0.896]
[1766556390360,6.3042,2927.1,2926.6,4.3176]
[1766556391039,5.9644,2926.9,2926.5,0.002]
[1766556392862,3.41659655,2926.9,2926.5,0.002]
[1766556393064,5.9644,2926.8,2926.5,0.002]
[1766556393270,0.01026676,2926.4,2926.1,0.002]
[1766556393472,5.97466676,2926.2,2925.3,5.1678]
[1766556393770,5.9644,2925.9,2925.3,5.1678]
[1766556394061,5.97466676,2925.8,2925.3,5.1678]
[1766556394569,5.9644,2925.8,2925.3,5.1678]
[1766556396063,0.01026676,2926.4,2925.4,4.25068335]
[1766556396243,0.01026676,2926.4,2925.4,4.2165]
[1766556396450,5.98206676,2926.4,2925.4,4.2165]
[1766556397052,5.9718,2926.3,2925.4,4.2165]
[1766556397252,5.98206676,2926.1,2925.4,4.2165]
[1766556398351,5.98206676,2926.1,2925.4,4.25068335]
[1766556399569,5.9718,2925.8,2925.3,0.002]
[1766556399750,5.9718,2925.6,2925.0,0.002]
[1766556400569,5.9718,2925.6,2925.0,4.1699]
[1766556400769,5.9718,2925.6,2925.1,4.18978686]
[1766556401071,5.9718,2925.9,2925.1,4.18978686]
[1766556401240,0.68453565,2926.0,2925.4,4.1556]
[1766556401445,0.01026676,2926.1,2925.4,4.1556]
[1766556401446,0.01026676,2926.1,2925.4,4.18978335]
[1766556401757,5.98206676,2926.1,2925.4,4.1556]
[1766556402269,5.9718,2926.0,2925.3,4.1435]
[1766556402479,5.9718,2925.8,2925.2,0.896]
[1766556402767,5.9718,2925.8,2925.0,0.002]
[1766556402975,0.01026676,2925.9,2924.9,0.002]
[1766556402976,5.9718,2925.3,2924.9,0.002]
[1766556403176,6.0122613,2925.2,2924.9,0.002]
[1766556404180,5.9718,2925.5,2924.9,4.1578]
[1766556404378,5.9718,2925.5,2925.1,0.002]
[1766556404672,4.01645364,2925.5,2924.9,0.002]
[1766556404848,0.01026676,2925.3,2924.9,0.002]
[1766556405049,5.9718,2925.2,2924.9,0.002]
[1766556406754,0.60847344,2925.5,2924.9,4.0845]
[1766556406980,0.59820668,2925.5,2924.9,4.0845]
[1766556408259,6.57000668,2925.5,2924.9,4.0845]
[1766556409387,5.9718,2925.4,2924.9,4.0845]
[1766556410205,6.97164162,2925.4,2924.9,0.002]
[1766556410513,6.98190838,2925.4,2924.9,0.002]
[1766556411100,5.9718,2925.3,2924.9,0.002]
[1766556411716,0.99984162,2925.4,2924.9,4.0396]
[1766556411912,5.98206676,2925.6,2924.9,4.0396]
[1766556412512,5.9718,2925.5,2924.9,4.0396]
[1766556415581,5.9718,2925.3,2924.9,0.002]
[1766556416782,5.9718,2925.3,2924.8,0.002]
[1766556416783,5.9718,2925.1,2924.8,0.002]
[1766556416978,6.57000668,2925.1,2924.8,0.002]
[1766556417288,5.9718,2925.3,2924.8,3.9676]
[1766556418489,5.9718,2925.3,2924.8,0.002]
[1766556419889,0.001,2925.4,2924.9,3.9357]
[1766556420389,5.9625513,2926.0,2925.2,3.944]
[1766556420588,5.9718,2926.3,2925.5,3.944]
[1766556420792,5.9718,2926.3,2925.7,3.9342]
[1766556421090,0.90626676,2926.8,2925.3,0.896]
[1766556421091,5.871,2925.9,2925.3,0.896]
[1766556421297,5.88126676,2925.8,2925.3,0.896]
[1766556421493,5.871,2925.3,2924.6,0.002]
[1766556421693,5.871,2925.1,2924.6,0.002]
[1766556422004,0.896,2925.2,2924.7,4.8123]
[1766556422320,0.896,2925.2,2924.7,4.84649154]
[1766556422622,6.767,2925.7,2925.0,4.8123]
[1766556422922,7.8891279,2925.7,2925.0,4.8123]
[1766556423118,6.9931279,2925.7,2925.0,4.8123]
[1766556423321,7.8891279,2925.7,2925.0,4.8123]
[1766556423616,6.767,2925.7,2925.0,4.84648803]
[1766556423817,5.871,2926.0,2925.0,4.84648803]
[1766556423997,0.896,2925.9,2925.0,4.84648803]
[1766556424191,6.767,2925.9,2925.0,4.84648803]
[1766556424396,6.767,2925.9,2925.0,4.8123]
[1766556424596,5.871,2925.7,2925.0,4.8123]
[1766556425324,5.871,2925.7,2925.0,4.80204324]
[1766556426802,5.872,2925.7,2925.0,4.80204324]
[1766556428296,5.872,2925.7,2925.0,4.83623127]
[1766556428496,5.872,2925.7,2925.1,4.745]
[1766556428698,5.872,2925.7,2925.2,4.745]
[1766556430335,0.001,2925.7,2925.2,4.745]
[1766556430519,5.871,2926.0,2925.4,4.7247]
[1766556433532,0.01026676,2926.2,2925.4,4.75888335]
[1766556433533,0.90626676,2926.2,2925.4,4.75888335]
[1766556433742,5.871,2926.1,2925.4,4.7247]
[1766556434642,5.871,2926.1,2925.6,0.7]
[1766556434823,5.871,2925.9,2925.1,5.3787]
[1766556436149,5.871,2925.7,2925.0,0.898]
[1766556436516,5.871,2925.5,2925.0,0.002]
[1766556437348,0.01026676,2925.4,2925.0,0.002]
[1766556437657,0.01026676,2925.4,2924.9,0.002]
[1766556437658,5.871,2925.3,2924.9,0.002]
[1766556437962,5.871,2924.9,2924.6,0.002]
[1766556438268,5.871,2924.7,2924.1,0.002]
[1766556438410,0.01026676,2924.4,2924.0,1e-08]
[1766556438769,5.871,2924.1,2924.0,1e-08]
[1766556439410,6.767,2924.1,2924.0,1e-08]
[1766556440217,6.75674114,2924.1,2923.4,5.35564115]
[1766556440666,5.86074114,2924.1,2923.4,4.41564]
[1766556440818,5.88126676,2924.6,2923.8,5.4286]
[1766556441153,6.767,2924.6,2924.0,5.4286]
[1766556441320,6.767,2924.6,2924.0,5.97146]
[1766556441650,0.896,2924.7,2924.1,5.46589855]
[1766556441859,6.767,2924.9,2924.1,5.46589855]
[1766556443222,6.767,2924.9,2924.1,5.4317]
[1766556443929,6.767,2924.9,2924.1,4.42306817]
[1766556444222,6.767,2924.9,2924.2,5.4378]
[1766556444948,5.871,2924.7,2924.1,0.83858936]
[1766556445120,5.871,2924.7,2924.0,0.53260044]
[1766556445330,5.871,2924.5,2924.0,5.4437]
[1766556447549,5.871,2924.5,2923.8,4.42306817]
[1766556447550,5.871,2924.3,2923.4,5.4513]
[1766556447727,0.01026676,2924.0,2923.4,0.002]
[1766556447932,5.871,2923.9,2923.4,0.002]
[1766556448180,5.871,2923.7,2923.4,0.002]
[1766556448655,0.896,2924.0,2923.5,9.87516817]
[1766556449026,0.90626676,2924.0,2923.5,9.87516817]
[1766556449224,0.01026676,2924.0,2923.5,4.42306817]
[1766556449451,0.01026676,2924.0,2923.6,5.4547]
[1766556450047,6.767,2924.1,2923.6,5.4547]
[1766556450257,0.01026676,2924.0,2923.6,5.4547]
[1766556450464,0.01026676,2924.4,2923.6,0.0342044]
[1766556450465,5.88126676,2924.4,2923.6,0.0342044]
[1766556450762,5.88126676,2924.2,2923.5,9.91667374]
[1766556451051,0.01026676,2924.4,2923.8,5.4594]
[1766556451426,5.87866676,2924.4,2923.8,5.4594]
[1766556451625,0.01026676,2924.2,2923.8,5.4594]
[1766556452249,5.87866676,2924.4,2923.8,5.4594]
[1766556452557,6.77466676,2924.4,2923.8,5.4594]
[1766556452758,0.67746668,2924.3,2923.8,5.4594]
[1766556454329,5.87866676,2924.4,2923.8,5.4594]
[1766556454531,6.77466676,2924.4,2923.8,5.4594]
[1766556454727,6.7644,2924.4,2923.8,5.4594]
[1766556455145,0.01026676,2924.3,2923.8,5.4594]
[1766556456316,5.7952,2924.2,2923.5,5.475]
[1766556456610,5.80546676,2924.1,2923.5,5.475]
[1766556457106,5.80546676,2924.1,2923.4,0.898]
[1766556457489,0.01026676,2924.3,2923.4,6.3754]
[1766556457799,0.90626676,2924.4,2923.7,5.4798]
[1766556457978,0.90626676,2924.4,2923.9,5.4798]
[1766556458176,0.01026676,2924.6,2924.0,0.03419972]
[1766556458372,0.58157335,2924.6,2924.1,5.4788]
[1766556458607,0.896,2924.7,2924.1,5.4788]
[1766556458900,5.7952,2924.8,2924.1,5.4788]
[1766556459786,5.7952,2924.8,2923.8,6.3805]
[1766556459787,5.80546676,2924.6,2923.8,6.3805]
[1766556459994,5.80546676,2924.6,2923.6,3.42044055]
[1766556459995,0.001,2925.7,2923.6,5.463]
[1766556460315,0.01026676,2925.0,2924.2,5.463]
[1766556460616,0.01026676,2924.9,2924.2,5.463]
[1766556460820,5.7952,2924.7,2923.8,3.42013381]
[1766556461114,5.80546676,2924.7,2924.1,8.88514064]
[1766556461313,5.80546676,2924.7,2924.2,5.4653]
[1766556461512,5.7952,2924.7,2924.2,5.4653]
[1766556462920,0.01026676,2924.9,2924.2,5.4653]
[1766556463127,0.01026676,2925.2,2924.4,5.4698]
[1766556464323,0.01026676,2925.0,2924.4,5.4698]
[1766556465733,0.001,2924.7,2924.4,5.4698]
[1766556468207,5.80546676,2925.2,2924.4,5.4698]
[1766556468437,5.80546676,2925.2,2924.5,5.51399387]
[1766556468839,0.01026676,2925.2,2924.5,6.46200713]
[1766556469035,5.7952,2925.4,2924.5,7.35800713]
[1766556469235,5.7952,2925.4,2924.6,5.4819]
[1766556469411,0.001,2925.5,2924.8,5.4819]
[1766556470254,0.001,2925.5,2925.0,5.4841]
[1766556471430,5.80546676,2925.4,2924.6,5.4861]
[1766556471630,0.01026676,2925.2,2924.6,5.4861]
[1766556471819,5.80546676,2925.2,2924.6,5.4861]
[1766556474047,5.80546676,2925.2,2924.7,0.03419154]
[1766556475354,5.80546676,2925.2,2924.7,5.53049154]
[1766556476448,5.7952,2925.2,2924.7,5.53049154]
[1766556476652,5.7952,2925.2,2924.7,5.4963]
[1766556477024,0.01026676,2925.4,2924.9,5.5002]
[1766556477539,0.001,2925.5,2924.9,5.5002]
[1766556477947,0.001,2925.5,2925.0,4.42047723]
[1766556478140,0.001,2925.5,2925.1,5.5021]
[1766556478452,0.001,2925.5,2925.2,9.92257723]
[1766556479954,0.001,2925.7,2925.3,5.5048]
[1766556480553,0.01126676,2925.7,2925.3,5.5048]
[1766556480752,5.80646676,2925.7,2925.3,5.5048]
[1766556480960,6.23287323,2925.7,2924.8,5.5067]
[1766556481161,5.8895,2925.5,2924.8,5.5067]
[1766556481963,5.8905,2925.5,2924.8,5.5067]
[1766556482353,5.89976676,2925.4,2924.8,5.5067]
[1766556482966,5.89976676,2925.4,2924.7,0.7374506]
[1766556483333,5.89976676,2925.4,2924.7,6.2477506]
[1766556484541,5.89976676,2925.4,2924.7,5.5103]
[1766556484859,5.8895,2925.3,2924.7,5.5103]
[1766556486157,5.8895,2925.3,2924.9,5.5156]
[1766556487433,0.01026676,2925.4,2924.9,5.5156]
[1766556487634,0.90726676,2925.5,2924.9,5.5156]
[1766556488239,6.79676676,2925.5,2924.9,5.5156]
[1766556489862,5.90076676,2925.5,2924.9,5.5156]
[1766556491140,5.90076676,2925.5,2925.0,0.03418803]
[1766556491343,5.90076676,2925.5,2925.0,5.524]
[1766556494267,0.01126676,2925.7,2925.2,5.5288]
[1766556494779,0.001,2925.7,2925.2,5.5288]
[1766556495074,0.001,2926.0,2925.4,5.5274]
[1766556495284,0.001,2926.0,2925.6,5.5274]
[1766556498392,5.8905,2926.6,2925.8,5.532]
[1766556498556,5.8905,2926.6,2926.0,5.531]
[1766556499458,0.01026676,2926.5,2926.0,5.531]
[1766556499757,5.89976676,2926.5,2926.0,5.531]
[1766556501484,5.89976676,2926.5,2925.5,5.5354]
[1766556501678,5.89976676,2926.5,2925.7,5.5354]
[1766556502682,5.8895,2926.5,2925.9,5.5383]
[1766556503088,5.8895,2926.5,2925.9,5.57247751]
[1766556503488,3.41707091,2926.5,2925.9,5.5383]
[1766556503693,5.8895,2926.4,2925.9,5.5383]
[1766556504587,6.83155053,2926.4,2925.6,9.95857863]
[1766556504786,6.83155053,2926.4,2925.7,5.5412]
[1766556505154,5.89976676,2926.4,2925.7,5.5412]
[1766556505352,5.8895,2926.4,2925.7,5.5412]
[1766556505781,5.8895,2926.4,2925.9,0.002]
[1766556506195,5.89976676,2926.4,2925.9,0.002]
[1766556506558,5.8895,2926.4,2925.9,5.5459]
[1766556507269,0.001,2926.5,2925.9,5.5459]
[1766556507477,5.89976676,2926.4,2925.9,0.002]
[1766556508087,5.8895,2926.2,2925.9,0.002]
[1766556508789,7.12951355,2926.5,2925.9,5.55]
[1766556511492,0.001,2926.7,2926.5,5.1953]
[1766556511704,0.001,2927.0,2926.8,9.61309885]
[1766556512014,0.001,2927.0,2926.8,5.1943]
[1766556513973,0.001,2927.2,2926.8,5.1943]
[1766556515190,0.001,2927.5,2927.0,4.41879885]
[1766556515379,5.6123,2927.7,2927.2,5.1976]
[1766556515586,5.62256676,2927.7,2927.2,5.1976]
[1766556515900,5.6123,2927.7,2927.2,5.1976]
[1766556516914,5.62256676,2927.7,2927.2,5.1976]
[1766556517118,6.52750436,2927.7,2927.2,5.1976]
[1766556517276,6.5172376,2927.7,2927.2,5.1976]
[1766556517484,6.52750436,2927.7,2927.2,5.1976]
[1766556517683,5.6123,2927.7,2927.2,5.1976]
[1766556517882,5.6123,2927.7,2926.9,5.24236584]
[1766556517883,0.01026676,2927.6,2926.9,5.24236584]
[1766556518082,0.01026676,2927.6,2926.9,5.2082]
[1766556518993,0.01026676,2927.6,2926.9,5.24236584]
[1766556519193,5.6123,2927.7,2926.9,6.24982308]
[1766556519710,5.6123,2927.7,2926.9,6.21565724]
[1766556519711,5.6113,2927.6,2926.9,6.21565724]
[1766556520003,5.6113,2927.6,2926.9,5.2082]
[1766556520208,5.60104044,2927.6,2926.9,5.2082]
[1766556521109,5.60104044,2927.6,2926.9,5.2102]
[1766556521475,5.60104044,2927.6,2927.0,0.03416467]
[1766556521674,5.60104044,2927.6,2927.0,5.26616467]
[1766556525312,5.59079314,2927.6,2927.0,5.26616467]
[1766556526093,5.59079314,2927.6,2927.0,5.84492414]
[1766556528415,5.59079314,2927.6,2927.0,5.84692414]
[1766556528788,0.001,2927.7,2927.0,5.81275947]
[1766556529118,0.001,2927.9,2927.1,5.3095635]
[1766556529418,0.001,2927.9,2927.3,5.2754]
[1766556529930,0.001,2927.9,2927.4,0.03416]
[1766556530138,0.001,2927.9,2927.5,5.2794]
[1766556531186,0.01026676,2927.1,2926.9,0.002]
[1766556531410,5.6113,2927.0,2926.4,5.2834]
[1766556531612,5.6113,2927.0,2926.5,5.81374]
[1766556531818,5.6113,2927.0,2926.5,5.2854]
[1766556532194,0.01026676,2926.9,2926.5,5.2854]
[1766556532389,5.62156676,2926.9,2926.3,0.03417284]
[1766556533690,5.62156676,2926.9,2926.3,5.2933]
[1766556533910,5.62156676,2926.9,2926.4,0.03417167]